fUSD/lending_fUSD_20240409
["ID","MTS","AMOUNT","RATE_DAILY","PERIOD"]
[321942257,1712644250032,-516.33690655,0.00020821,2]
[321942259,1712644250043,-2482.19,0.00020821,2]
[321942261,1712644250053,-562.28,0.00020821,2]
[321942264,1712644250063,-500.0,0.00020821,2]
[321942265,1712644250073,-950.43,0.00020821,2]
[321942267,1712644250082,-3212.78,0.00020821,2]
[321942269,1712644250092,-500.0,0.00020821,2]
[321942271,1712644250102,-500.0,0.00020821,2]
[321942273,1712644250111,-500.0,0.00020821,2]
[321942275,1712644250123,-2016.91,0.00020821,2]
[321942278,1712644250134,-1609.97,0.00020821,2]
[321942279,1712644250146,-3324.9,0.00020821,2]
[321942281,1712644250155,-8313.37,0.00020821,2]
[321942307,1712644250412,-500.0,0.00020821,2]
[321942309,1712644250423,-13814.89,0.00020821,2]
[321942311,1712644250438,-6751.46,0.00020821,2]
[321942313,1712644250453,-500.0,0.00020821,2]
[321942315,1712644250465,-500.0,0.00020821,2]
[321942317,1712644250477,-6815.57,0.00020821,2]
[321942319,1712644250489,-500.0,0.00020821,2]
[321942321,1712644250499,-1289.99,0.00020821,2]
[321942323,1712644250511,-500.0,0.00020821,2]
[321942325,1712644250522,-4632.23,0.00020821,2]
[321942327,1712644250534,-597.97003008,0.00020821,2]
[321942329,1712644250545,-1343.66,0.00020821,2]
[321942331,1712644250556,-3669.6,0.00020821,2]
[321942333,1712644250568,-500.0,0.00020821,2]
[321942335,1712644250580,-500.0,0.00020821,2]
[321942337,1712644250591,-23902.97,0.00020821,2]
[321942340,1712644250602,-2736.66,0.00020821,2]
[321942342,1712644250613,-500.0,0.00020821,2]
[321942344,1712644250628,-866.91,0.00020821,2]
[321942346,1712644250639,-3239.57,0.00020821,2]
[321942348,1712644250650,-990.63,0.00020821,2]
[321942350,1712644250662,-500.0,0.00020821,2]
[321942352,1712644250673,-2555.77,0.00020821,2]
[321942354,1712644250687,-12818.03,0.00020821,2]
[321942356,1712644250702,-500.0,0.00020821,2]
[321942358,1712644250713,-1393.24,0.00020821,2]
[321942360,1712644250724,-500.0,0.00020821,2]
[321942362,1712644250734,-500.0,0.00020821,2]
[321942364,1712644250745,-3658.05,0.00020821,2]
[321942365,1712644250756,-500.0,0.00020821,2]
[321942368,1712644250767,-1106.95,0.00020821,2]
[321942370,1712644250777,-3980.18,0.00020821,2]
[321942372,1712644250789,-582.39,0.00020821,2]
[321942373,1712644250800,-3377.65,0.00020821,2]
[321942376,1712644250810,-573.81,0.00020821,2]
[321942378,1712644250821,-388.28532631,0.00020821,2]
[321942380,1712644250832,-380.73868676,0.00020821,2]
[321942382,1712644250842,-2166.62,0.00020821,2]
[321942383,1712644250852,-500.0,0.00020821,2]
[321942386,1712644250864,-3558.88,0.00020821,2]
[321942388,1712644250874,-500.0,0.00020821,2]
[321942390,1712644250884,-500.0,0.00020821,2]
[321942392,1712644250897,-548.23,0.00020821,2]
[321942394,1712644250908,-22242.63,0.00020821,2]
[321942396,1712644250919,-523.14113972,0.00020821,2]
[321942397,1712644250929,-5284.26,0.00020821,2]
[321942400,1712644250944,-500.0,0.00020821,2]
[321942402,1712644250954,-500.0,0.00020821,2]
[321942404,1712644250964,-500.0,0.00020821,2]
[321942406,1712644250973,-500.0,0.00020821,2]
[321942408,1712644250983,-1739.34,0.00020821,2]
[321942410,1712644250993,-2074.72,0.00020821,2]
[321942412,1712644251003,-500.0,0.00020821,2]
[321942414,1712644251013,-750.08,0.00020821,2]
[321942416,1712644251024,-500.0,0.00020821,2]
[321942418,1712644251034,-3513.31,0.00020821,2]
[321942420,1712644251044,-4157.86,0.00020821,2]
[321942422,1712644251053,-500.0,0.00020821,2]
[321942424,1712644251064,-500.0,0.00020821,2]
[321942426,1712644251075,-4302.91,0.00020821,2]
[321942428,1712644251085,-2513.72,0.00020821,2]
[321942430,1712644251095,-6394.1,0.00020821,2]
[321942432,1712644251104,-500.0,0.00020821,2]
[321942434,1712644251114,-668.97,0.00020821,2]
[321942436,1712644251125,-16069.29236238,0.00020821,2]
[321942487,1712644251709,-5839.74763762,0.00020821,2]
[321942489,1712644251719,-6436.98,0.00020821,2]
[321942491,1712644251729,-500.0,0.00020821,2]
[321942493,1712644251739,-479.3083547,0.00020821,2]
[321942495,1712644251750,-3497.8,0.00020821,2]
[321942497,1712644251760,-538.77,0.00020821,2]
[321942499,1712644251770,-925.09,0.00020821,2]
[321942501,1712644251780,-500.0,0.00020821,2]
[321942503,1712644251789,-559.97,0.00020821,2]
[321942505,1712644251799,-555.31,0.00020821,2]
[321942507,1712644251809,-500.0,0.00020821,2]
[321942508,1712644251818,-1539.53,0.00020821,2]
[321942511,1712644251828,-3617.77,0.00020821,2]
[321942513,1712644251838,-909.69,0.00020821,2]
[321942514,1712644251847,-1332.16,0.00020821,2]
[321942517,1712644251858,-2580.08,0.00020821,2]
[321942519,1712644251867,-1332.38,0.00020821,2]
[321942520,1712644251877,-1992.25,0.00020821,2]
[321942523,1712644251888,-1992.25,0.00020821,2]
[321942525,1712644251898,-1992.25,0.00020821,2]
[321942527,1712644251909,-2162.43,0.00020821,2]
[321942529,1712644251918,-1992.25,0.00020821,2]
[321942531,1712644251927,-1992.25,0.00020821,2]
[321942533,1712644251939,-500.0,0.00020821,2]
[321942535,1712644251948,-1992.25,0.00020821,2]
[321942537,1712644251958,-1992.25,0.00020821,2]
[321942539,1712644251967,-500.0,0.00020821,2]
[321942541,1712644251976,-1992.25,0.00020821,2]
[321942543,1712644251986,-500.0,0.00020821,2]
[321942545,1712644251995,-1992.25,0.00020821,2]
[321942547,1712644252005,-1992.25,0.00020821,2]
[321942549,1712644252015,-1992.25,0.00020821,2]
[321942551,1712644252024,-3503.81,0.00020821,2]
[321942553,1712644252034,-10015.3,0.00020821,2]
[321942555,1712644252043,-500.0,0.00020821,2]
[321942557,1712644252053,-500.0,0.00020821,2]
[321942559,1712644252063,-2761.81,0.00020821,2]
[321942561,1712644252073,-500.0,0.00020821,2]
[321942563,1712644252083,-4454.56,0.00020821,2]
[321942565,1712644252092,-1753.68,0.00020821,2]
[321942567,1712644252102,-513.98406261,0.00020821,2]
[321942569,1712644252112,-2130.32,0.00020821,2]
[321942571,1712644252123,-175.40735261,0.00020821,2]
[321942573,1712644252133,-556.74377467,0.00020821,2]
[321942575,1712644252147,-500.0,0.00020821,2]
[321942577,1712644252161,-59300.26,0.00020821,2]
[321942578,1712644252171,-577.0,0.00020821,2]
[321942580,1712644252184,-1524.96,0.00020821,2]
[321942583,1712644252194,-711.75,0.00020821,2]
[321942584,1712644252203,-500.0,0.00020821,2]
[321942587,1712644252213,-1394.57,0.00020821,2]
[321942589,1712644252223,-531.59876044,0.00020821,2]
[321942591,1712644252234,-500.0,0.00020821,2]
[321942593,1712644252244,-47955.56,0.00020821,2]
[321942595,1712644252254,-4100.14,0.00020821,2]
[321942597,1712644252263,-2961.05984157,0.00020821,2]
[321942604,1712644252322,-315.89015843,0.00020821,2]
[321942606,1712644252331,-3410.66,0.00020821,2]
[321942608,1712644252340,-511.95327801,0.00020821,2]
[321942610,1712644252350,-52.72741659,0.00020821,2]
[321942612,1712644252361,-447.27258341,0.00020821,2]
[321942615,1712644252370,-1319.77,0.00020821,2]
[321942616,1712644252379,-743.79,0.00020821,2]
[321942618,1712644252388,-1003.47,0.00020821,2]
[321942620,1712644252397,-285.44932774,0.00020821,2]
[321942623,1712644252411,-214.55067226,0.00020821,2]
[321942625,1712644252420,-2666.82939269,0.00020821,2]
[321942627,1712644252433,-4820.52136096,0.00020821,2]
[321942711,1712644253289,-673.09900328,0.00020799,2]
[321942713,1712644253299,-501.48203709,0.00020821,2]
[321942741,1712644253554,-1884.97720926,0.00020821,2]
[321942743,1712644253563,-581.69,0.00020821,2]
[321942745,1712644253573,-565.71,0.00020821,2]
[321942747,1712644253581,-1744.03317371,0.00020821,2]
[321942754,1712644253633,-4088.01682629,0.00020821,2]
[321942756,1712644253642,-1333.92,0.00020821,2]
[321942758,1712644253651,-1597.69,0.00020821,2]
[321942760,1712644253661,-546.89278174,0.00020821,2]
[321943618,1712644482046,808.71,0.00017804,2]
[321943619,1712644498780,191.99,0.00016712,2]
[321943620,1712644512596,287.85246364,0.00016712,2]
[321943621,1712644528739,190.42457696,0.00016712,2]
[321943623,1712645062082,768.27,0.00017348,2]
[321943661,1712645432237,-201.09327359,0.00018199,2]
[321943662,1712645432248,-785.52907082,0.00018298,2]
[321943663,1712645432258,-437.93120904,0.00018299,2]
[321943664,1712645432272,-94.09202335,0.00018299,2]
[321943665,1712645432282,-500.0,0.00018299,2]
[321943666,1712645432295,-1455.094371,0.00018302,2]
[321943667,1712645432307,-157.77169424,0.0001849,2]
[321943668,1712645432319,-200.0,0.00019017,2]
[321943669,1712645432329,-500.0,0.00019112,2]
[321943670,1712645432343,-292.04,0.00019136,2]
[321943671,1712645432354,-250.0,0.00019168,2]
[321943672,1712645432364,-499.99,0.00019178,2]
[321943673,1712645432375,-1000.0,0.00019178,2]
[321943674,1712645432386,-231.28,0.00019202,2]
[321943675,1712645432396,-150.99,0.00019202,2]
[321943676,1712645432406,-150.0,0.00019205,2]
[321943677,1712645432417,-172.55,0.00019217,2]
[321943678,1712645432429,-500.0,0.00019231,3]
[321943679,1712645432441,-754.91158734,0.00019272,2]
[321943680,1712645432599,-673.50663588,0.00019272,2]
[321943681,1712645432718,-405.00000002,0.00019272,2]
[321943682,1712645432788,-3203.09114009,0.00019272,2]
[321943684,1712645433507,-1097.06475608,0.00019272,2]
[321943688,1712645438267,-5687.49205111,0.00019272,2]
[321943689,1712645438331,-521.56382948,0.00019272,2]
[321943690,1712645438342,-888.95,0.00019294,2]
[321943691,1712645438351,-1441.17095079,0.00019331,2]
[321943692,1712645438363,-2757.68415598,0.00019331,2]
[321943693,1712645438375,-500.6964493,0.00019331,2]
[321943694,1712645438386,-1061.81867662,0.00019331,2]
[321943695,1712645438582,-2366.71895235,0.00019331,2]
[321943696,1712645438598,-1464.0,0.00019331,2]
[321943697,1712645438640,-1832.28241582,0.00019331,2]
[321943698,1712645438703,-7983.98839914,0.00019331,2]
[321943699,1712645438713,-338.83,0.00019333,2]
[321943700,1712645438722,-1089.19,0.00019452,2]
[321943701,1712645438733,-768.27,0.00019612,2]
[321943702,1712645438743,-698.60062439,0.0002,2]
[321943703,1712645438753,-4762.0,0.0002,2]
[321943704,1712645438763,-858.15283199,0.0002004,2]
[321943706,1712645438772,-823.97,0.00020041,2]
[321943708,1712645438782,-661.17,0.00020059,2]
[321943710,1712645438791,-539.89655994,0.00020156,2]
[321943712,1712645438800,-174.08,0.00020157,2]
[321943714,1712645438809,-1041.45739731,0.000205,2]
[321943716,1712645438819,-564.0,0.00020547,2]
[321943718,1712645438828,-150.0,0.00020548,2]
[321943720,1712645438838,-1228.05543114,0.00020621,2]
[321943721,1712645438847,-37147.6135,0.000207,2]
[321943724,1712645438856,-31747.6622,0.000207,2]
[321943726,1712645438867,-51300.62219306,0.00020721,2]
[321943728,1712645438876,-175.25314994,0.00020721,2]
[321943730,1712645438885,-2788.3326794,0.00020721,2]
[321943733,1712645438894,-156.08235332,0.00020721,2]
[321943735,1712645438904,-1262.89677129,0.00020721,2]
[321943737,1712645438913,-343.02504412,0.00020721,2]
[321943740,1712645438923,-156.58917219,0.00020758,2]
[321943742,1712645438932,-193.00565872,0.00020798,2]
[321943743,1712645438941,-236.800798,0.00020798,2]
[321943746,1712645438951,-254.96728486,0.000208,2]
[321943748,1712645438960,-490.0,0.000208,2]
[321943750,1712645438970,-250.0,0.000208,2]
[321943752,1712645438980,-250.0,0.000208,2]
[321943754,1712645438990,-226.17204832,0.00020811,2]
[321943756,1712645438999,-157.040915,0.00020817,2]
[321943758,1712645439009,-157.040915,0.00020817,2]
[321943760,1712645439018,-157.040915,0.00020817,2]
[321943762,1712645439027,-157.040915,0.00020817,2]
[321943764,1712645439037,-157.040915,0.00020818,2]
[321943766,1712645439047,-157.040915,0.00020818,2]
[321943768,1712645439057,-193.66968639,0.00020819,2]
[321943770,1712645439067,-2008.35892859,0.00020819,2]
[321943772,1712645439077,-306.47791941,0.00020819,2]
[321943774,1712645439087,-155.748897,0.0002082,2]
[321943776,1712645439097,-6208.72680129,0.0002082,2]
[321943778,1712645439106,-10794.63,0.0002082,2]
[321943780,1712645439115,-259.76791664,0.00020821,2]
[321943782,1712645439124,-500.0,0.00020821,2]
[321943784,1712645439134,-500.0,0.00020821,2]
[321943785,1712645439143,-500.0,0.00020821,2]
[321943787,1712645439152,-442.72000617,0.00020821,2]
[321943790,1712645439162,-237.33633521,0.00020821,2]
[321943792,1712645439171,-500.0,0.00020821,2]
[321943794,1712645439181,-497.38733183,0.00020821,2]
[321943796,1712645439190,-518.23306452,0.00020821,2]
[321943798,1712645439199,-500.0,0.00020821,2]
[321943800,1712645439209,-500.0,0.00020821,2]
[321943802,1712645439218,-1037.31277698,0.00020821,2]
[321943804,1712645439227,-500.0,0.00020821,2]
[321943806,1712645439236,-500.0,0.00020821,2]
[321943808,1712645439246,-500.0,0.00020821,2]
[321943810,1712645439256,-518.65249635,0.00020821,2]
[321943812,1712645439265,-412.27668031,0.00020821,2]
[321943814,1712645439275,-285.77804814,0.00020821,2]
[321943816,1712645439284,-498.48115019,0.00020821,2]
[321943818,1712645439293,-500.0,0.00020821,2]
[321943820,1712645439303,-547.95201507,0.00020821,2]
[321943822,1712645439313,-500.0,0.00020821,2]
[321943824,1712645439323,-760.53,0.00020821,2]
[321943826,1712645439333,-500.0,0.00020821,2]
[321943828,1712645439345,-500.0,0.00020821,2]
[321943830,1712645439354,-876.95,0.00020821,2]
[321943832,1712645439364,-500.0,0.00020821,2]
[321943834,1712645439373,-500.0,0.00020821,2]
[321943836,1712645439383,-671.47,0.00020821,2]
[321943838,1712645439392,-153.01200973,0.00020821,2]
[321943840,1712645439402,-500.0,0.00020821,2]
[321943849,1712645439473,-500.0,0.00020821,2]
[321943851,1712645439483,-205.16196336,0.00020821,2]
[321943853,1712645439493,-500.0,0.00020821,2]
[321943855,1712645439502,-500.0,0.00020821,2]
[321943856,1712645439513,-500.0,0.00020821,2]
[321943858,1712645439522,-704.2,0.00020821,2]
[321943861,1712645439532,-500.0,0.00020821,2]
[321943862,1712645439542,-500.0,0.00020821,2]
[321943864,1712645439557,-501.96579492,0.00020821,2]
[321943867,1712645439569,-500.0,0.00020821,2]
[321943869,1712645439578,-500.0,0.00020821,2]
[321943871,1712645439591,-500.0,0.00020821,2]
[321943873,1712645439600,-314.72045289,0.00020821,2]
[321943875,1712645439610,-500.0,0.00020821,2]
[321943877,1712645439619,-500.0,0.00020821,2]
[321943879,1712645439629,-500.0,0.00020821,2]
[321943881,1712645439638,-936.23,0.00020821,2]
[321943883,1712645439647,-500.0,0.00020821,2]
[321943885,1712645439656,-500.0,0.00020821,2]
[321943887,1712645439666,-510.45,0.00020821,2]
[321943889,1712645439675,-504.46987788,0.00020821,2]
[321943891,1712645439684,-500.0,0.00020821,2]
[321943893,1712645439693,-521.21,0.00020821,2]
[321943894,1712645439703,-603.87,0.00020821,2]
[321943897,1712645439712,-500.0,0.00020821,2]
[321943899,1712645439721,-500.0,0.00020821,2]
[321943901,1712645439731,-622.31,0.00020821,2]
[321943903,1712645439741,-500.0,0.00020821,2]
[321943905,1712645439750,-500.0,0.00020821,2]
[321943907,1712645439759,-500.0,0.00020821,2]
[321943908,1712645439768,-500.0,0.00020821,2]
[321943910,1712645439777,-500.0,0.00020821,2]
[321943912,1712645439787,-500.0,0.00020821,2]
[321943915,1712645439796,-500.0,0.00020821,2]
[321943917,1712645439805,-500.0,0.00020821,2]
[321943918,1712645439814,-500.0,0.00020821,2]
[321943920,1712645439823,-690.77,0.00020821,2]
[321943922,1712645439832,-500.0,0.00020821,2]
[321943924,1712645439843,-500.0,0.00020821,2]
[321943926,1712645439852,-524.22118967,0.00020821,2]
[321943928,1712645439861,-500.0,0.00020821,2]
[321943930,1712645439870,-500.0,0.00020821,2]
[321943932,1712645439879,-512.85357473,0.00020821,2]
[321943933,1712645439890,-500.0,0.00020821,2]
[321943934,1712645439899,-500.0,0.00020821,2]
[321943935,1712645439909,-503.16140436,0.00020821,2]
[321943937,1712645439918,-500.0,0.00020821,2]
[321943938,1712645439927,-500.0,0.00020821,2]
[321943940,1712645439936,-500.0,0.00020821,2]
[321943941,1712645439945,-500.0,0.00020821,2]
[321943942,1712645439954,-500.0,0.00020821,2]
[321943943,1712645439964,-495.25607,0.00020821,2]
[321943944,1712645439973,-500.0,0.00020821,2]
[321943945,1712645439982,-500.0,0.00020821,2]
[321943946,1712645439991,-500.0,0.00020821,2]
[321943947,1712645440000,-500.0,0.00020821,2]
[321943948,1712645440009,-500.0,0.00020821,2]
[321943949,1712645440018,-679.65,0.00020821,2]
[321943950,1712645440027,-500.0,0.00020821,2]
[321943951,1712645440037,-563.9,0.00020821,2]
[321943952,1712645440046,-510.58847976,0.00020821,2]
[321943953,1712645440055,-500.0,0.00020821,2]
[321943954,1712645440064,-500.0,0.00020821,2]
[321943955,1712645440074,-500.0,0.00020821,2]
[321943956,1712645440083,-500.0,0.00020821,2]
[321943957,1712645440094,-500.0,0.00020821,2]
[321943958,1712645440103,-772.59,0.00020821,2]
[321943959,1712645440111,-509.80091351,0.00020821,2]
[321943960,1712645440120,-500.0,0.00020821,2]
[321943961,1712645440130,-500.0,0.00020821,2]
[321943962,1712645440139,-500.0,0.00020821,2]
[321943964,1712645440148,-500.0,0.00020821,2]
[321943965,1712645440157,-500.0,0.00020821,2]
[321943967,1712645440167,-500.0,0.00020821,2]
[321943968,1712645440176,-500.0,0.00020821,2]
[321943969,1712645440185,-500.0,0.00020821,2]
[321943970,1712645440195,-500.0,0.00020821,2]
[321943971,1712645440204,-618.1108645,0.00020821,2]
[321943972,1712645440213,-500.0,0.00020821,2]
[321943973,1712645440222,-500.0,0.00020821,2]
[321943974,1712645440231,-316.98375612,0.00020821,2]
[321943975,1712645440240,-509.31287673,0.00020821,2]
[321943976,1712645440250,-500.0,0.00020821,2]
[321943977,1712645440259,-500.0,0.00020821,2]
[321943978,1712645440269,-219.13216335,0.00020821,2]
[321943979,1712645440279,-500.0,0.00020821,2]
[321943980,1712645440288,-500.0,0.00020821,2]
[321943981,1712645440298,-500.0,0.00020821,2]
[321943982,1712645440307,-500.0,0.00020821,2]
[321943983,1712645440317,-500.0,0.00020821,2]
[321943984,1712645440327,-500.0,0.00020821,2]
[321943985,1712645440336,-500.0,0.00020821,2]
[321943986,1712645440346,-500.0,0.00020821,2]
[321943987,1712645440355,-500.0,0.00020821,2]
[321943988,1712645440365,-898.71,0.00020821,2]
[321943989,1712645440375,-2090.83,0.00020821,2]
[321943990,1712645440384,-500.0,0.00020821,2]
[321943991,1712645440393,-500.0,0.00020821,2]
[321943992,1712645440403,-500.0,0.00020821,2]
[321943993,1712645440413,-1364.39,0.00020821,2]
[321943994,1712645440423,-500.0,0.00020821,2]
[321943995,1712645440432,-500.0,0.00020821,2]
[321943996,1712645440442,-500.0,0.00020821,2]
[321943997,1712645440451,-500.0,0.00020821,2]
[321943998,1712645440460,-500.0,0.00020821,2]
[321943999,1712645440474,-500.0,0.00020821,2]
[321944000,1712645440484,-500.0,0.00020821,2]
[321944001,1712645440493,-500.0,0.00020821,2]
[321944002,1712645440503,-500.0,0.00020821,2]
[321944003,1712645440513,-500.0,0.00020821,2]
[321944004,1712645440523,-500.0,0.00020821,2]
[321944005,1712645440532,-500.0,0.00020821,2]
[321944006,1712645440542,-500.0,0.00020821,2]
[321944007,1712645440552,-500.0,0.00020821,2]
[321944008,1712645440561,-500.0,0.00020821,2]
[321944009,1712645440571,-1206.97,0.00020821,2]
[321944010,1712645440580,-500.0,0.00020821,2]
[321944011,1712645440590,-500.0,0.00020821,2]
[321944012,1712645440600,-500.0,0.00020821,2]
[321944013,1712645440609,-376.39683976,0.00020821,2]
[321944014,1712645440619,-500.0,0.00020821,2]
[321944015,1712645440628,-500.0,0.00020821,2]
[321944016,1712645440637,-500.0,0.00020821,2]
[321944017,1712645440646,-500.0,0.00020821,2]
[321944018,1712645440656,-500.0,0.00020821,2]
[321944019,1712645440665,-949.47,0.00020821,2]
[321944021,1712645440675,-500.0,0.00020821,2]
[321944023,1712645440684,-500.0,0.00020821,2]
[321944025,1712645440693,-500.0,0.00020821,2]
[321944027,1712645440702,-500.0,0.00020821,2]
[321944029,1712645440712,-500.0,0.00020821,2]
[321944031,1712645440721,-892.58,0.00020821,2]
[321944033,1712645440730,-500.0,0.00020821,2]
[321944035,1712645440739,-500.0,0.00020821,2]
[321944037,1712645440748,-500.0,0.00020821,2]
[321944039,1712645440757,-500.0,0.00020821,2]
[321944041,1712645440766,-500.0,0.00020821,2]
[321944043,1712645440775,-500.0,0.00020821,2]
[321944045,1712645440784,-989.16,0.00020821,2]
[321944047,1712645440793,-500.0,0.00020821,2]
[321944048,1712645440803,-500.0,0.00020821,2]
[321944050,1712645440813,-500.0,0.00020821,2]
[321944052,1712645440822,-681.79,0.00020821,2]
[321944054,1712645440832,-500.0,0.00020821,2]
[321944056,1712645440843,-500.0,0.00020821,2]
[321944058,1712645440852,-725.6,0.00020821,2]
[321944060,1712645440861,-500.57226938,0.00020821,2]
[321944062,1712645440870,-1288.61,0.00020821,2]
[321944064,1712645440879,-500.0,0.00020821,2]
[321944066,1712645440889,-500.0,0.00020821,2]
[321944068,1712645440898,-556.10047584,0.00020821,2]
[321944070,1712645440907,-500.0,0.00020821,2]
[321944072,1712645440917,-1510.33,0.00020821,2]
[321944074,1712645440927,-500.0,0.00020821,2]
[321944076,1712645440936,-576.23,0.00020821,2]
[321944078,1712645440945,-500.0,0.00020821,2]
[321944080,1712645440954,-500.0,0.00020821,2]
[321944082,1712645440964,-500.0,0.00020821,2]
[321944084,1712645440973,-500.0,0.00020821,2]
[321944086,1712645440983,-1113.81,0.00020821,2]
[321944088,1712645440994,-505.78666866,0.00020821,2]
[321944090,1712645441003,-500.0,0.00020821,2]
[321944092,1712645441012,-500.0,0.00020821,2]
[321944094,1712645441022,-512.88920514,0.00020821,2]
[321944096,1712645441031,-500.0,0.00020821,2]
[321944098,1712645441041,-500.0,0.00020821,2]
[321944100,1712645441053,-505.21006571,0.00020821,2]
[321944102,1712645441062,-500.0,0.00020821,2]
[321944105,1712645441072,-500.0,0.00020821,2]
[321944106,1712645441081,-744.5,0.00020821,2]
[321944108,1712645441093,-542.05,0.00020821,2]
[321944110,1712645441103,-500.0,0.00020821,2]
[321944112,1712645441114,-500.0,0.00020821,2]
[321944115,1712645441123,-1496.26,0.00020821,2]
[321944116,1712645441133,-500.0,0.00020821,2]
[321944118,1712645441142,-554.28,0.00020821,2]
[321944120,1712645441151,-500.0,0.00020821,2]
[321944123,1712645441161,-500.0,0.00020821,2]
[321944125,1712645441170,-500.0,0.00020821,2]
[321944127,1712645441180,-500.0,0.00020821,2]
[321944129,1712645441189,-500.0,0.00020821,2]
[321944131,1712645441198,-500.0,0.00020821,2]
[321944133,1712645441209,-500.0,0.00020821,2]
[321944134,1712645441219,-500.0,0.00020821,2]
[321944137,1712645441228,-500.0,0.00020821,2]
[321944139,1712645441238,-500.0,0.00020821,2]
[321944141,1712645441247,-500.0,0.00020821,2]
[321944142,1712645441256,-168.4508715,0.00020821,2]
[321944144,1712645441265,-923.1,0.00020821,2]
[321944146,1712645441274,-500.0,0.00020821,2]
[321944149,1712645441284,-1157.4,0.00020821,2]
[321944151,1712645441293,-500.0,0.00020821,2]
[321944152,1712645441303,-500.0,0.00020821,2]
[321944154,1712645441312,-500.0,0.00020821,2]
[321944156,1712645441321,-500.0,0.00020821,2]
[321944158,1712645441330,-500.0,0.00020821,2]
[321944160,1712645441344,-500.0,0.00020821,2]
[321944162,1712645441354,-515.68,0.00020821,2]
[321944164,1712645441363,-500.0,0.00020821,2]
[321944166,1712645441373,-338.50211589,0.00020821,2]
[321944168,1712645441382,-784.09,0.00020821,2]
[321944170,1712645441392,-500.0,0.00020821,2]
[321944172,1712645441401,-500.0,0.00020821,2]
[321944174,1712645441410,-500.0,0.00020821,2]
[321944176,1712645441420,-506.45128578,0.00020821,2]
[321944178,1712645441430,-500.0,0.00020821,2]
[321944180,1712645441439,-500.0,0.00020821,2]
[321944182,1712645441449,-500.0,0.00020821,2]
[321944184,1712645441459,-1218.51,0.00020821,2]
[321944186,1712645441469,-500.0,0.00020821,2]
[321944188,1712645441480,-500.0,0.00020821,2]
[321944190,1712645441490,-500.0,0.00020821,2]
[321944192,1712645441499,-500.0,0.00020821,2]
[321944194,1712645441508,-500.0,0.00020821,2]
[321944196,1712645441518,-571.89,0.00020821,2]
[321944198,1712645441529,-500.0,0.00020821,2]
[321944200,1712645441538,-500.0,0.00020821,2]
[321944202,1712645441549,-500.0,0.00020821,2]
[321944204,1712645441558,-500.0,0.00020821,2]
[321944206,1712645441568,-502.51,0.00020821,2]
[321944208,1712645441577,-562.32937769,0.00020821,2]
[321944210,1712645441586,-500.0,0.00020821,2]
[321944212,1712645441598,-500.0,0.00020821,2]
[321944214,1712645441606,-552.85558896,0.00020821,2]
[321944216,1712645441615,-567.15838533,0.00020821,2]
[321944218,1712645441624,-500.0,0.00020821,2]
[321944219,1712645441633,-623.33,0.00020821,2]
[321944220,1712645441641,-500.0,0.00020821,2]
[321944221,1712645441651,-699.78,0.00020821,2]
[321944222,1712645441660,-500.0,0.00020821,2]
[321944223,1712645441669,-500.0,0.00020821,2]
[321944224,1712645441678,-500.0,0.00020821,2]